bitfinex-derivatives/quotes_SOLF0:USTF0_20251119
["timestamp","ask_amount","ask_price","bid_price","bid_amount"]
[1763533798923,41.21,138.39,138.36,2.59]
[1763533799223,6.5082,138.41,138.36,2.63804205]
[1763533799413,3.27,138.42,138.37,2.59]
[1763533800220,3.27,138.42,138.36,0.04804205]
[1763533800221,5.23488918,138.39,138.36,0.04804205]
[1763533800426,5.23488918,138.37,138.36,0.04804205]
[1763533800920,3.27,138.37,138.36,0.04804205]
[1763533801123,3.27,138.39,138.36,0.04804205]
[1763533801518,3.27,138.39,138.36,2.63804205]
[1763533803220,3.27,138.39,138.36,0.04804205]
[1763533803415,3.08,138.37,138.36,0.04804205]
[1763533803613,3.08,138.37,138.32,0.33]
[1763533803818,1.96488918,138.38,138.32,0.33]
[1763533803819,3.08,138.34,138.32,0.33]
[1763533804512,0.05063425,138.34,138.32,2.9916283]
[1763533804822,0.05063425,138.34,138.32,11.46841748]
[1763533805024,0.05063425,138.34,138.33,2.61]
[1763533805918,0.05063425,138.34,138.33,4.05]
[1763533806111,3.08,138.4,138.35,2.61]
[1763533806624,3.08,138.4,138.35,9.1205]
[1763533806826,3.08,138.4,138.36,2.61]
[1763533807119,3.08,138.4,138.37,0.05254754]
[1763533809625,3.08,138.4,138.37,2.66254754]
[1763533810228,3.08,138.4,138.37,0.05254754]
[1763533811324,9.5884,138.4,138.37,0.05254754]
[1763533811520,3.08,138.39,138.37,0.05254754]
[1763533811927,3.08,138.41,138.37,0.05254754]
[1763533812723,3.08,138.41,138.37,2.66254754]
[1763533813522,3.08,138.41,138.38,0.33]
[1763533815930,3.08,138.4,138.38,0.33]
[1763533816130,3.08,138.4,138.38,2.94]
[1763533816426,3.08,138.42,138.38,2.94]
[1763533816626,101.2061,138.45,138.38,2.94]
[1763533816627,3.08,138.44,138.39,2.66558641]
[1763533818030,3.08,138.43,138.39,2.66558641]
[1763533818225,3.08,138.42,138.39,0.05558641]
[1763533818434,3.08,138.4,138.39,0.05558641]
[1763533824235,3.04,138.4,138.39,0.05558641]
[1763533827336,3.04,138.42,138.39,2.66558641]
[1763533828536,3.04,138.42,138.39,9.17418641]
[1763533829040,37.92,138.45,138.4,2.61]
[1763533829243,3.04,138.47,138.41,2.61]
[1763533829543,3.04,138.47,138.43,0.0548335]
[1763533829743,3.04,138.47,138.43,2.6648335]
[1763533831349,3.04,138.47,138.44,4.57488918]
[1763533831646,3.04,138.47,138.44,2.61]
[1763533832043,40.96,138.5,138.45,2.61]
[1763533832242,3.04,138.5,138.46,2.65849966]
[1763533832844,3.04,138.5,138.46,0.04849966]
[1763533833632,3.13,138.49,138.46,0.04849966]
[1763533836948,3.13,138.47,138.4,2.61]
[1763533837248,3.13,138.47,138.39,27.80237138]
[1763533837446,3.13,138.47,138.39,30.46237138]
[1763533837844,6.5059,138.45,138.42,0.05110421]
[1763533838043,3.17694472,138.44,138.42,0.05110421]
[1763533849550,3.13,138.43,138.37,6.63245014]
[1763533849754,3.13,138.42,138.36,6.96245014]
[1763533849949,3.13,138.42,138.36,0.33]
[1763533850150,3.13,138.41,138.36,9.5]
[1763533850547,3.13,138.41,138.37,0.0475206]
[1763533850751,3.17667661,138.4,138.37,0.0475206]
[1763533851053,3.17667661,138.4,138.37,2.7075206]
[1763533851655,3.17667661,138.4,138.37,9.2170206]
[1763533851853,0.04667661,138.4,138.38,2.66]
[1763533852352,3.17667661,138.4,138.37,0.0475206]
[1763533854654,0.04667661,138.4,138.38,2.66]
[1763533855346,0.04667661,138.4,138.39,2.66]
[1763533855655,3.13,138.43,138.39,2.66]
[1763533856742,0.05443655,138.42,138.39,2.66]
[1763533856949,0.05443655,138.42,138.39,9.1683]
[1763533857147,3.18443655,138.42,138.39,9.1683]
[1763533858956,3.18443655,138.42,138.37,6.67997074]
[1763533858957,0.05443655,138.42,138.4,9.1681]
[1763533859256,3.18443655,138.42,138.4,6.5081]
[1763533860349,0.05443655,138.42,138.41,2.66]
[1763533860647,3.13,138.46,138.42,2.66]
[1763533860959,3.13,138.45,138.42,2.66]
[1763533861146,3.13,138.45,138.4,6.63245014]
[1763533861347,3.13,138.43,138.37,6.63245014]
[1763533861552,3.13,138.43,138.39,0.04907102]
[1763533861850,9.6372,138.43,138.39,0.04907102]
[1763533862052,3.13,138.42,138.39,0.04907102]
[1763533862961,9.6362,138.45,138.39,2.70907102]
[1763533863255,3.13,138.44,138.39,2.70907102]
[1763533864252,3.17,138.43,138.39,2.70907102]
[1763533864855,3.17,138.43,138.4,2.66]
[1763533865458,3.17,138.46,138.41,2.66]
[1763533865759,3.17,138.46,138.42,2.71065967]
[1763533865961,3.17,138.46,138.43,2.66]
[1763533866454,3.17,138.49,138.44,2.66]
[1763533866657,3.17,138.52,138.46,2.66]
[1763533866959,3.17,138.52,138.49,2.66]
[1763533867552,3.17,138.54,138.49,2.66]
[1763533867765,3.17,138.54,138.48,0.05560074]
[1763533868261,3.17,138.54,138.48,2.71560074]
[1763533869157,9.6719,138.54,138.48,2.71560074]
[1763533869348,101.1192,138.57,138.48,2.71560074]
[1763533869349,3.17,138.57,138.48,2.71560074]
[1763533869549,3.17,138.57,138.51,0.05322014]
[1763533869957,3.17,138.55,138.51,0.05322014]
[1763533871553,3.17,138.58,138.51,2.71322014]
[1763533872167,104.2962,138.56,138.51,0.05322014]
[1763533872362,3.17,138.54,138.51,0.05322014]
[1763533872565,3.17,138.52,138.51,0.05322014]
[1763533874168,9.671,138.56,138.51,2.71322014]
[1763533874366,3.17,138.55,138.51,0.05322014]
[1763533874666,9.6714,138.55,138.51,0.05322014]
[1763533874967,3.17,138.54,138.51,0.05322014]
[1763533875565,3.17,138.53,138.51,0.05322014]
[1763533881261,3.17,138.56,138.51,2.71322014]
[1763533881465,3.17,138.56,138.51,0.05322014]
[1763533882070,3.17,138.54,138.51,0.05322014]
[1763533882269,3.17,138.54,138.51,0.39322014]
[1763533883073,3.17,138.54,138.51,3.05322014]
[1763533883968,3.1,138.58,138.51,3.05322014]
[1763533884970,3.1,138.58,138.52,2.66]
[1763533885466,3.1,138.57,138.52,2.66]
[1763533885672,3.1,138.57,138.51,0.39322014]
[1763533886875,3.1,138.57,138.51,3.05322014]
[1763533887470,3.1,138.57,138.52,9.1623]
[1763533888774,3.1,138.57,138.53,2.66]
[1763533889772,3.1,138.56,138.51,0.39322014]
[1763533889968,3.1,138.52,138.46,6.63245014]
[1763533890170,3.1,138.52,138.43,2.66]
[1763533890365,3.1,138.52,138.45,9.1657]
[1763533891078,3.1,138.52,138.42,107.85295014]
[1763533891079,0.04888862,138.5,138.48,2.66]
[1763533891468,0.04888862,138.5,138.48,9.1643]
[1763533891675,0.04888862,138.5,138.49,2.66]
[1763533892572,0.04888862,138.5,138.48,6.5043]
[1763533892769,0.04888862,138.5,138.47,2.70844369]
[1763533893271,0.04888862,138.5,138.48,9.1643]
[1763533894177,0.04888862,138.5,138.49,2.66]
[1763533894474,47.4108,138.56,138.5,2.66]
[1763533894672,9.5308,138.56,138.5,2.66]
[1763533894864,3.03,138.55,138.5,2.66]
[1763533895483,3.03,138.55,138.51,2.71494911]
[1763533896871,37.86,138.58,138.51,2.71494911]
[1763533897067,37.86,138.58,138.52,2.66]
[1763533897468,40.89,138.58,138.52,2.66]
[1763533897663,3.03,138.57,138.52,2.66]
[1763533900879,3.03,138.55,138.51,0.05494911]
[1763533901174,3.03,138.53,138.51,0.05494911]
[1763533902776,3.03,138.51,138.44,6.63245014]
[1763533902974,4.98781369,138.5,138.43,9.1668]
[1763533903773,3.08162354,138.48,138.45,0.04875735]
[1763533904173,3.03,138.47,138.45,0.04875735]
[1763533906686,3.08162354,138.48,138.45,0.04875735]
[1763533907482,3.03,138.47,138.45,0.04875735]
[1763533907880,4.98781369,138.46,138.45,0.04875735]
[1763533908493,3.03,138.45,138.39,15.80105014]
[1763533909492,3.0804601,138.43,138.41,0.05554448]
[1763533909683,0.0504601,138.43,138.41,2.71554448]
[1763533910286,3.0804601,138.43,138.39,3.35245014]
[1763533910491,3.0804601,138.43,138.36,3.11245014]
[1763533910492,22.3004601,138.43,138.36,3.11245014]
[1763533910688,22.25,138.43,138.36,3.04]
[1763533910887,19.22,138.43,138.37,3.04]
[1763533911182,19.22,138.43,138.38,3.04]
[1763533911386,3.03,138.46,138.4,3.04]
[1763533911387,0.05537824,138.42,138.4,3.04]
[1763533911687,3.03,138.46,138.4,3.04]
[1763533912095,18.68,138.48,138.41,3.04]
[1763533912383,18.68,138.48,138.42,9.547]
[1763533912589,3.03,138.52,138.43,3.04]
[1763533912779,0.05062735,138.49,138.47,4.99781369]
[1763533912983,3.03,138.54,138.48,3.04]
[1763533913178,3.03,138.54,138.46,37.94]
[1763533913486,3.03,138.52,138.46,3.04]
[1763533913891,0.04959645,138.5,138.48,0.0502196]
[1763533916893,3.07959645,138.5,138.48,0.0502196]
[1763533918994,3.07959645,138.5,138.43,3.04]
[1763533919594,9.5343,138.49,138.43,3.04]
[1763533920088,9.5343,138.49,138.45,0.04978646]
[1763533920286,3.03,138.47,138.45,0.04978646]
[1763533921593,3.07959645,138.5,138.45,3.08978646]
[1763533921897,9.58319645,138.5,138.45,0.04978646]
[1763533922084,3.07959645,138.5,138.45,0.04978646]
[1763533922488,3.03,138.47,138.45,0.04978646]
[1763533923284,3.03,138.49,138.45,3.08978646]
[1763533923501,3.03,138.49,138.45,0.04978646]
[1763533923991,2.99,138.46,138.45,0.04978646]
[1763533924797,0.04824685,138.47,138.45,0.04978646]
[1763533925189,0.04824685,138.47,138.45,3.29978646]
[1763533926899,6.5019,138.54,138.47,3.25]
[1763533927288,9.4919,138.54,138.47,3.25]
[1763533927491,2.99,138.53,138.47,9.7548]
[1763533927686,0.04685021,138.51,138.49,0.04964589]
[1763533927889,0.04685021,138.51,138.49,3.29964589]
[1763533928402,2.99,138.56,138.5,3.25]
[1763533928901,2.99,138.56,138.51,3.25]
[1763533929398,2.99,138.56,138.52,0.04933201]
[1763533931200,37.98,138.57,138.52,3.29933201]
[1763533931404,2.99,138.62,138.53,3.25]
[1763533931605,101.068,138.64,138.56,0.04617529]
[1763533931606,2.99,138.6,138.56,0.04617529]
[1763533933107,2.99,138.58,138.56,0.04617529]
[1763533933507,2.99,138.62,138.56,0.04617529]
[1763533934212,2.99,138.6,138.56,3.29617529]
[1763533934405,2.99,138.63,138.56,3.29617529]
[1763533934810,9.488,138.62,138.56,3.29617529]
[1763533935004,2.99,138.61,138.58,0.05223021]
[1763533935604,6.4973,138.64,138.58,3.30223021]
[1763533935804,2.99,138.63,138.58,3.30223021]
[1763533936311,2.99,138.71,138.61,3.25]
[1763533936604,2.99,138.71,138.65,0.04981694]
[1763533937517,2.03003734,138.72,138.65,3.29981694]
[1763533937699,2.03003734,138.72,138.67,3.25]
[1763533937900,0.08644815,138.72,138.68,104.2826]
[1763533938099,0.08644815,138.72,138.69,3.25]
[1763533938517,30.13,138.8,138.71,3.25]
[1763533938715,2.99,138.8,138.72,3.25]
[1763533938916,2.99,138.8,138.74,3.2977961]
[1763533939404,2.99,138.83,138.76,3.25]
[1763533939805,2.99,138.83,138.78,0.05090391]
[1763533940613,2.99,138.83,138.78,3.30090391]
[1763533940909,38.04,138.86,138.78,3.30090391]
[1763533941110,2.99,138.87,138.78,3.30090391]
[1763533941302,2.99,138.87,138.81,0.05157551]
[1763533941906,2.99,138.85,138.81,0.05157551]
[1763533944020,3.0,138.82,138.81,0.05157551]
[1763533944214,3.0,138.81,138.7,2.99]
[1763533944413,3.0,138.81,138.72,2.99]
[1763533945212,3.0,138.81,138.71,38.0]
[1763533945213,0.04966829,138.78,138.75,3.04508552]
[1763533947819,3.04966829,138.78,138.75,0.05508552]
[1763533948516,0.04966829,138.78,138.75,3.04508552]
[1763533948705,3.04966829,138.78,138.75,0.05508552]
[1763533950913,3.0,138.77,138.69,2.99]
[1763533951124,3.0,138.76,138.69,2.99]
[1763533951922,3.04764709,138.74,138.71,0.05450076]
[1763533952420,3.0,138.72,138.71,0.05450076]
[1763533952624,3.0,138.72,138.65,2.99]
[1763533952834,3.0,138.7,138.62,9.4878]
[1763533953117,3.0,138.7,138.62,2.99]
[1763533953313,3.0,138.68,138.6,6.4988]
[1763533953709,6.4949,138.69,138.63,0.04667822]
[1763533953710,3.0234348,138.65,138.63,0.04667822]
[1763533956519,0.0534348,138.65,138.63,0.04667822]
[1763533956921,38.0,138.7,138.64,2.96]
[1763533957120,40.97,138.7,138.64,2.96]
[1763533958028,0.05243082,138.68,138.64,2.96]
[1763533958426,3.02243082,138.68,138.63,0.04667822]
[1763533959127,3.02243082,138.68,138.63,3.00667822]
[1763533959328,0.05243082,138.68,138.63,3.00667822]
[1763533959625,0.05243082,138.68,138.65,2.96]
[1763533960524,0.05243082,138.68,138.65,9.4564]
[1763533960729,0.05243082,138.68,138.65,2.96]
[1763533961037,0.05243082,138.68,138.63,0.04667822]
[1763533961219,0.05243082,138.68,138.64,2.96]
[1763533962326,0.05243082,138.68,138.64,9.4567]
[1763533962525,0.05243082,138.68,138.64,104.0215]
[1763533962713,0.05243082,138.68,138.66,2.96]
[1763533962912,0.05243082,138.68,138.66,9.4558]
[1763533963126,0.05243082,138.68,138.67,2.96]
[1763533964632,2.97,138.75,138.7,2.96]
[1763533965428,40.97,138.78,138.71,2.96]
[1763533965625,0.05317644,138.76,138.73,3.00819539]
[1763533967726,0.05317644,138.76,138.75,2.96]
[1763533970828,0.05317644,138.76,138.73,0.04819539]
[1763533971018,0.05317644,138.76,138.74,2.96]
[1763533972420,37.98,138.84,138.76,2.96]
[1763533972421,40.95,138.84,138.76,2.96]
[1763533972621,40.95,138.84,138.77,38.0]
[1763533973133,2.97,138.83,138.77,40.96]
[1763533973329,0.02021436,138.81,138.79,0.045955]
[1763533973531,2.99021436,138.81,138.79,0.045955]
[1763533974038,2.97,138.8,138.79,0.045955]
[1763533976735,2.99021436,138.81,138.79,0.045955]
[1763533977832,0.02021436,138.81,138.79,3.005955]
[1763533978334,0.02021436,138.81,138.79,0.045955]
[1763533979028,2.99021436,138.81,138.79,0.045955]
[1763533984540,0.02021436,138.81,138.79,3.305955]
[1763533985041,0.02021436,138.81,138.79,9.795555]
[1763533985236,0.02021436,138.81,138.79,0.045955]
[1763533985638,0.02021436,138.81,138.79,3.305955]
[1763533985839,0.02021436,138.81,138.79,9.795455]
[1763533986035,3.05,138.89,138.81,3.26]
[1763533986237,3.05,138.89,138.83,3.26]
[1763533986431,3.05,138.89,138.83,9.7478]
[1763533986637,3.05,138.89,138.8,3.26]
[1763533986936,3.05,138.88,138.81,6.4887]
[1763533987133,3.05,138.88,138.83,0.04643323]
[1763533987741,3.05,138.87,138.83,0.04643323]
[1763533987932,3.05,138.86,138.83,0.04643323]
[1763533988233,3.05,138.84,138.76,3.26]
[1763533988832,3.05,138.83,138.76,3.26]
[1763533989028,3.05,138.83,138.73,9.75449917]
[1763533989229,3.05,138.81,138.71,6.49449917]
[1763533989427,3.09511914,138.77,138.75,0.05431582]
[1763533989632,3.05,138.76,138.69,6.49449917]
[1763533990034,3.05,138.74,138.69,6.49449917]
[1763533990246,38.02,138.75,138.7,9.75449917]
[1763533990440,38.02,138.75,138.71,3.26]
[1763533990636,0.05185469,138.74,138.72,0.04838933]
[1763533992438,3.10185469,138.74,138.72,0.04838933]
[1763533992643,0.05185469,138.74,138.72,0.04838933]
[1763533993045,0.05185469,138.74,138.72,3.30838933]
[1763533993234,0.05185469,138.74,138.72,0.04838933]
[1763533994936,0.05185469,138.74,138.72,3.30838933]
[1763533995138,3.10185469,138.74,138.72,0.04838933]
[1763533996034,3.10185469,138.74,138.66,9.7558]
[1763533996241,3.10185469,138.74,138.66,3.26]
[1763533996435,3.10185469,138.74,138.68,3.26]
[1763533996645,0.05185469,138.74,138.68,3.26]
[1763533997151,3.10185469,138.74,138.7,3.31173346]
[1763533997347,0.05185469,138.74,138.7,3.31173346]
[1763533997651,3.10185469,138.74,138.7,3.31173346]
[1763533998560,0.05185469,138.74,138.7,3.31173346]
[1763534000353,0.05185469,138.74,138.71,9.7534]
[1763534000540,0.05185469,138.74,138.72,3.26]
[1763534000744,0.05185469,138.74,138.7,3.31173346]
[1763534000951,3.10185469,138.74,138.7,9.80563346]
[1763534001353,3.10185469,138.74,138.7,3.31173346]
[1763534002256,3.10185469,138.74,138.7,0.05173346]
[1763534003453,3.02,138.72,138.7,0.05173346]
[1763534003660,3.02,138.7,138.64,2.98]
[1763534003845,3.02,138.7,138.62,6.49449917]
[1763534004046,3.02,138.7,138.62,9.47449917]
[1763534004445,3.02,138.69,138.62,2.98]
[1763534004760,3.06588109,138.67,138.64,0.04761607]
[1763534005860,47.60168109,138.67,138.64,0.04761607]
[1763534006059,3.02,138.66,138.64,0.04761607]
[1763534006753,9.5163,138.66,138.64,0.04761607]
[1763534007055,3.02,138.65,138.56,41.0]
[1763534007252,3.02,138.65,138.58,6.4995]
[1763534007957,3.02,138.62,138.6,0.04549585]
[1763534010148,0.04902102,138.63,138.6,0.04549585]
[1763534010345,0.04902102,138.63,138.61,6.4981]
[1763534010550,0.04902102,138.63,138.61,9.4781]
[1763534010846,0.04902102,138.63,138.62,2.98]
[1763534011046,3.02,138.69,138.62,2.98]
[1763534011259,3.02,138.69,138.63,2.98]
[1763534011950,0.05402814,138.67,138.65,0.05013]
[1763534013156,3.07402814,138.67,138.65,0.05013]
[1763534016063,0.05402814,138.67,138.65,0.05013]
[1763534016453,3.24402814,138.67,138.65,0.05013]
[1763534016760,0.05402814,138.67,138.65,0.05013]
[1763534016959,0.05402814,138.67,138.65,3.29013]
[1763534017164,3.19,138.73,138.67,3.24]
[1763534017358,3.19,138.76,138.69,6.4944]
[1763534017664,3.19,138.76,138.69,9.7344]
[1763534017959,3.19,138.76,138.65,104.2942]
[1763534018152,3.23791838,138.74,138.71,0.04759213]
[1763534019560,0.04791838,138.74,138.71,3.28759213]
[1763534020560,3.23791838,138.74,138.71,0.04759213]
[1763534022871,0.04791838,138.74,138.71,3.28759213]
[1763534023560,0.04791838,138.74,138.71,9.78109213]
[1763534024068,0.04791838,138.74,138.71,0.04759213]
[1763534024467,3.23791838,138.74,138.71,0.04759213]
[1763534024770,0.04791838,138.74,138.71,3.28759213]
[1763534025773,3.23791838,138.74,138.71,0.04759213]
[1763534025969,0.04791838,138.74,138.71,3.28759213]
[1763534027474,0.04791838,138.74,138.71,9.78119213]
[1763534027676,0.04791838,138.74,138.72,3.24]
[1763534028380,41.19,138.8,138.73,3.24]
[1763534029085,3.19,138.82,138.76,3.24]
[1763534029289,3.24036224,138.8,138.78,0.05313234]
[1763534030490,0.05036224,138.8,138.78,3.29313234]
[1763534030889,0.05036224,138.8,138.78,9.78343234]
[1763534031490,0.05036224,138.8,138.79,3.24]
[1763534032682,3.24036224,138.8,138.78,0.05313234]
[1763534038904,9.73006224,138.8,138.78,0.05313234]
[1763534039199,3.19,138.79,138.78,0.05313234]
[1763534041509,6.54006224,138.8,138.71,6.4935]
[1763534041510,3.19,138.77,138.71,6.4935]
[1763534041802,3.19,138.77,138.69,3.24]
[1763534042000,9.6811,138.77,138.69,3.24]
[1763534042603,0.05001215,138.74,138.72,3.28846385]
[1763534043104,0.05001215,138.74,138.73,3.24]
[1763534049711,100.9219,138.84,138.73,3.24]
[1763534049712,8.25838021,138.86,138.73,4.68]
[1763534049900,3.17,138.85,138.78,2.96]
[1763534050200,3.17,138.85,138.79,2.96]
[1763534050908,0.04709814,138.83,138.81,3.01268788]
[1763534051708,3.17,138.88,138.81,3.01268788]
[1763534051902,3.17,138.88,138.82,9.4484]
[1763534052209,3.17,138.88,138.83,2.96]
[1763534052601,0.05222833,138.87,138.84,3.01330475]
[1763534052904,3.22222833,138.87,138.84,0.05330475]
[1763534054311,3.22222833,138.87,138.84,3.01330475]
[1763534054707,3.22222833,138.87,138.84,0.05330475]
[1763534055302,0.05222833,138.87,138.84,3.01330475]
[1763534055700,3.22222833,138.87,138.84,0.05330475]
[1763534056704,3.22222833,138.87,138.84,3.01330475]
[1763534057007,3.22222833,138.87,138.84,0.05330475]
[1763534059210,3.17,138.85,138.84,0.05330475]
[1763534059417,3.17,138.85,138.77,2.96]
[1763534059607,3.17,138.84,138.77,2.96]
[1763534060515,3.21982499,138.82,138.79,0.04733862]
[1763534060715,3.21982499,138.82,138.79,3.00733862]
[1763534062421,0.04982499,138.82,138.79,3.00733862]
[1763534064020,3.14,138.88,138.81,3.23]
[1763534065122,0.05169238,138.86,138.84,3.23]
[1763534066034,0.05169238,138.86,138.83,9.76334369]
[1763534066324,0.05169238,138.86,138.84,3.23]
[1763534067220,0.05169238,138.86,138.85,3.23]
[1763534072231,2.98,138.93,138.85,3.23]
[1763534072418,2.98,138.93,138.87,3.25]
[1763534072919,2.98,138.93,138.88,3.25]
[1763534073426,41.21,138.94,138.89,3.29772127]
[1763534074018,3.23,138.97,138.91,3.08]
[1763534074221,3.23,139.0,138.93,3.13351472]
[1763534074726,3.23,139.0,138.95,3.08]
[1763534074927,3.23,139.0,138.96,0.05203934]
[1763534075521,3.23,139.0,138.96,3.13203934]
[1763534075730,2.03003734,139.01,138.96,3.13203934]
[1763534076729,2.03003734,139.01,138.97,3.08]
[1763534081333,5.26003734,139.01,138.97,3.08]
[1763534081541,2.03003734,139.01,138.97,3.08]
[1763534082244,3.23,139.0,138.96,0.05203934]
[1763534083540,3.23,139.0,138.96,3.13203934]
[1763534084137,3.23,139.0,138.96,0.05203934]
[1763534084644,3.23,139.0,138.96,3.13203934]
[1763534085152,2.03003734,139.01,138.97,3.08]
[1763534086051,3.23,139.0,138.96,0.05203934]
[1763534087453,3.23,138.99,138.96,0.05203934]
[1763534088151,9.7108,138.99,138.96,0.05203934]
[1763534088341,3.23,138.98,138.96,0.05203934]
[1763534091250,3.23,139.0,138.96,3.13203934]
[1763534091958,3.23,139.0,138.96,0.05203934]
[1763534092461,3.23,138.97,138.96,0.05203934]
[1763534095454,3.23,138.96,138.89,24.57609078]
[1763534095758,3.23,138.96,138.91,3.08]
[1763534095962,9.7126,138.95,138.89,3.08]
[1763534096149,3.23,138.95,138.89,3.08]
[1763534096350,0.05317093,138.93,138.91,9.5642]
[1763534096555,0.05317093,138.93,138.92,3.08]
[1763534097162,5.26003734,139.01,138.94,9.5628]
[1763534097370,3.23,139.0,138.94,9.5628]
[1763534097659,3.23,138.99,138.94,3.08]
[1763534097865,3.23,138.99,138.92,3.08]
[1763534098254,3.23,138.99,138.94,3.13108945]
[1763534098765,2.03003734,139.01,138.94,3.13108945]
[1763534099359,5.26003734,139.01,138.97,3.08]
[1763534099669,3.23,139.0,138.98,0.05531162]
[1763534099966,9.7102,139.0,138.98,0.05531162]
[1763534100163,5.26003734,139.01,138.98,0.05531162]
[1763534100468,3.23,139.0,138.98,0.05531162]
[1763534101565,2.03003734,139.01,138.98,3.13531162]
[1763534102274,5.26003734,139.01,138.98,3.13531162]
[1763534102576,5.26003734,139.01,138.98,0.05531162]
[1763534103574,5.26003734,139.01,138.98,3.07531162]
[1763534104166,3.24,139.0,138.98,0.05531162]
[1763534104863,3.24,138.99,138.91,3.02]
[1763534105269,3.24,138.95,138.89,21.50318682]
[1763534105474,3.24,138.95,138.89,3.02]
[1763534105677,3.24,138.95,138.89,24.73651918]
[1763534105970,3.29101316,138.93,138.91,0.05415728]
[1763534106172,3.29101316,138.93,138.91,0.05097068]
[1763534106475,3.29101316,138.93,138.84,138.8124]
[1763534106476,3.24,138.92,138.85,3.02]
[1763534106664,104.1038,138.92,138.82,3.02]
[1763534106867,3.24,138.9,138.83,3.02]
[1763534107063,3.24,138.9,138.84,3.02]
[1763534107570,3.24,138.9,138.86,0.04563589]
[1763534107771,0.04855342,138.88,138.86,0.04563589]
[1763534108779,3.28855342,138.88,138.86,0.04563589]
[1763534109878,0.04855342,138.88,138.86,0.04563589]
[1763534112074,3.28855342,138.88,138.86,0.04563589]
[1763534112380,0.04855342,138.88,138.86,3.06563589]
[1763534113073,0.04855342,138.88,138.86,0.04563589]
[1763534113481,3.28855342,138.88,138.86,0.04563589]
[1763534114975,0.04855342,138.88,138.86,3.06563589]
[1763534116686,0.04855342,138.88,138.86,0.04563589]
[1763534116888,0.04855342,138.88,138.86,3.06563589]
[1763534117383,0.04855342,138.88,138.86,0.04563589]
[1763534118784,0.04855342,138.88,138.86,3.06563589]
[1763534119985,3.28855342,138.88,138.86,0.04563589]
[1763534120988,0.04855342,138.88,138.86,0.04563589]
[1763534121185,0.04855342,138.88,138.86,3.06563589]
[1763534121891,0.04855342,138.88,138.86,0.04563589]
[1763534122091,3.28855342,138.88,138.86,0.04563589]
[1763534122679,0.04855342,138.88,138.86,3.06563589]
[1763534122881,3.28855342,138.88,138.86,0.04563589]
[1763534123392,0.04855342,138.88,138.86,0.04563589]
[1763534124087,0.04855342,138.88,138.86,3.24563589]
[1763534124690,3.14855342,138.88,138.86,0.04563589]
[1763534125090,0.04855342,138.88,138.86,3.24563589]
[1763534127497,3.14855342,138.88,138.86,0.04563589]
[1763534127691,3.14855342,138.88,138.86,3.24563589]
[1763534127692,0.04855342,138.88,138.86,3.24563589]
[1763534129293,3.14855342,138.88,138.86,0.04563589]
[1763534129794,3.1,138.87,138.86,0.04563589]
[1763534130294,3.1,138.87,138.8,9.6894]
[1763534130590,3.1,138.87,138.81,3.2]
[1763534131095,9.5865,138.87,138.81,3.2]
[1763534131290,0.05184368,138.85,138.83,3.24567696]
[1763534131595,0.04544251,138.85,138.83,3.25313151]
[1763534131796,3.14544251,138.85,138.83,0.05313151]
[1763534132792,3.14544251,138.85,138.77,3.2]
[1763534132991,0.04544251,138.85,138.79,3.2]
[1763534133293,0.04544251,138.85,138.83,3.2]
[1763534133600,0.04544251,138.85,138.83,9.6879]
[1763534133898,0.04544251,138.85,138.84,3.05]
[1763534135796,3.27,138.9,138.85,9.5368]
[1763534135992,3.27,138.9,138.86,3.05]
[1763534136894,0.05368218,138.89,138.87,0.04745962]
[1763534137299,3.32368218,138.89,138.87,0.04745962]
[1763534138198,3.32368218,138.89,138.83,6.4878]